Cogmind - Beta 13 @@@ ROGUE MODE // 2024.04.29 @ 14:11:54 Player: MO-55 Result: Destroyed by F9-9JA(R) with Subdweller Beam Cannon Performance ------------- Evolutions (0) 0 Regions Visited (2) 400 Robots Destroyed (32) 160 Value Destroyed (743) 743 Prototype IDs (0) 0 Alien Tech Used (0) 0 Bonus (0) 0 TOTAL SCORE: 1303 Bonus ------- None Cogmind --------- Core Integrity 0/250 Matter 266/300 Energy 117/125 System Corruption 0% Temperature Cool (9) Movement Treading (240) Ox1 Location -10/Subcaves Parts ------- > --- POWER (1) -------- Light Ion Engine > --- PROPULSION (2) --- Light Treads Light Treads > --- UTILITY (2) ------ High-capacity Storage Unit Light Armor Plating > --- WEAPON (2) ------- Subdweller Laser > --- INVENTORY (20) --- Light Treads Light Treads Improved Hover Unit Improved Hover Unit Improved Hover Unit Improved Hover Unit Improved Terrain Scanner Seismic Detector Core Shielding Utility Shielding Utility Shielding Medium Laser Makeshift Laser Mini Grenade Launcher Mini Grenade Launcher Maul Maul Peak State ------------ > --- POWER ------------ Light Ion Engine > --- PROPULSION ------- Light Treads Light Treads > --- UTILITY ---------- High-capacity Storage Unit Core Shielding > --- WEAPON ----------- Makeshift Laser Battle Rifle > --- INVENTORY -------- Light Ion Engine Light Treads Light Treads Light Treads Improved Hover Unit Improved Hover Unit Improved Hover Unit Improved Hover Unit Improved Terrain Scanner Seismic Detector Utility Shielding Utility Shielding Light Armor Plating Medium Laser Mini Grenade Launcher Mini Grenade Launcher Mini Grenade Launcher Maul Maul [Rating: 14] Favorites ----------- Power Light Ion Engine Engine Light Ion Engine Propulsion Light Treads Treads Light Treads Leg Aluminum Leg Utility High-capacity Storage Unit Device Seismic Detector Storage High-capacity Storage Unit Protection Core Shielding Weapon Assault Rifle Energy Gun Medium Laser Energy Cannon Beam Cannon Ballistic Gun Assault Rifle Impact Weapon Maul Build | -11 -10 -10 ------- Run | Yrd Mat Sub Slots Evolved . | . . . Power . | . . . Propulsion . | . . . Utility . | . . . Weapon . | . . . Parts Attached 27 | 8 11 8 Power 4 | 1 2 1 Engine 4 | 1 2 1 Core . | . . . Reactor . | . . . Propulsion 8 | 3 4 1 Treads 4 | 1 2 1 Leg 4 | 2 2 . Wheel . | . . . Hover . | . . . Flight . | . . . Utility 6 | 2 3 1 Device 2 | 1 1 . Storage 2 | 1 1 . Processor . | . . . Hackware . | . . . Protection 2 | . 1 1 Artifact . | . . . Weapon 9 | 2 2 5 Energy Gun 3 | 1 . 2 Energy Cannon 1 | . 1 . Ballistic Gun 4 | 1 1 2 Ballistic Cannon . | . . . Launcher . | . . . Special Weapon . | . . . Impact Weapon 1 | . . 1 Slashing Weapon . | . . . Piercing Weapon . | . . . Special Melee Weapon . | . . . Unidentified Prototypes . | . . . Parts Lost 5 | . 2 3 Power 2 | . 1 1 Propulsion 1 | . . 1 Utility . | . . . Weapon 2 | . 1 1 Highest Loss Streak 2 | . 1 2 To Critical Strikes . | . . . Average Slot Usage (%) 99 | . 100 99 Engine 13 | . 14 13 Treads 24 | . 23 27 Leg 3 | . 4 . Device 4 | . 6 . Storage 14 | . 14 14 Protection 9 | . 7 14 Energy Gun 6 | . 4 11 Energy Cannon 7 | . 9 2 Ballistic Gun 12 | . 14 10 Impact Weapon 1 | . . 3 Naked Turns . | . . . Heaviest Build 52 | 15 51 52 Greatest Support 40 | 20 40 40 Greatest Overweight (x) 1 | . 1 1 Average Overweight (x) . | . . 1 Largest Inventory Capacity 20 | 8 20 20 Average Capacity 18 | 7 18 20 Most Carried 20 | 6 20 20 Average Carried 14 | 3 13 17 Final Capacity 20 | 8 20 20 Final Carried 20 | 6 20 17 Class Distribution -------------------- 100% | Mutant Dominant Class ---------------- Mutant | -10/Materials Mutant | -10/Subcaves Resources | -11 -10 -10 ----------- Run | Yrd Mat Sub Matter Collected 750 | 292 369 89 Remotely . | . . . Salvage Created 1077 | 108 815 154 Parts 57 | 5 45 7 Haulers Intercepted 2 | . 2 . Recyclers Shooed . | . . . Parts Field Recycled . | . . . Retrieved Matter . | . . . Parts Self-Destructed 8 | . . 8 Prevented . | . . . Kills | -11 -10 -10 ------- Run | Yrd Mat Sub Combat Hostiles Destroyed 22 | . 18 4 Guns 16 | . 13 3 Cannons 6 | . 5 1 Classes Destroyed 10 | 2 7 1 Worker 1 | . 1 . Builder 1 | . 1 . Tunneler 2 | 2 . . Hauler 2 | . 2 . Recycler 1 | 1 . . Operator 2 | . 2 . Watcher 1 | . 1 . Swarmer 5 | . 5 . Grunt 13 | . 13 . Subdweller 4 | . . 4 Best Kill Streak 6 | 3 6 1 Combat Bots Only 5 | . 5 1 Max Kills in Single Turn 2 | 2 1 1 Gunslinging . | . . . Exploded . | . . . Melee . | . . . Uniques/NPCs Destroyed . | . . . Combat | -11 -10 -10 -------- Run | Yrd Mat Sub Hostile Shots Fired 112 | . 86 26 Missed 25 | . 18 7 Damage Taken 1207 | . 712 495 Core 267 | . 129 138 Absorbed by Shields . | . . . Redirected to Shielding 22 | . 6 16 Core Remaining (%) 100 | 100 . . Volleys Fired 107 | 4 83 20 Largest 2 | 2 2 2 Hottest 85 | 70 80 85 Shots Fired 209 | 8 165 36 Gun 167 | 8 128 31 Cannon 42 | . 37 5 Launcher . | . . . Special . | . . . Kinetic 102 | 4 82 16 Thermal 107 | 4 83 20 Explosive . | . . . Electromagnetic . | . . . Robot Hit Streak 22 | 3 22 21 Robot Miss Streak 5 | 2 5 1 Penetration Max . | . . . Secondary Targets . | . . . Shots Hit Robots 152 | 4 116 32 Core Hits 51 | 4 38 9 Critical Kills . | . . . Critical Parts Destroyed 2 | . 2 . Critical Strikes 5 | . 4 1 Burn 3 | . 2 1 Destroy 2 | . 2 . Melee Attacks 5 | . . 5 Impact 5 | . . 5 Slashing . | . . . Piercing . | . . . Sneak Attacks . | . . . Combat Hostiles . | . . . Follow-up Attacks . | . . . Damage Inflicted 2273 | 64 1643 566 Guns 1640 | 64 1063 513 Cannons 632 | . 579 53 Explosions . | . . . Melee . | . . . Ramming 1 | . 1 . Kinetic 963 | 27 689 247 Thermal 1309 | 37 953 319 Explosive . | . . . Electromagnetic . | . . . Impact . | . . . Slashing . | . . . Piercing . | . . . Highest Corruption . | . . . Average Corruption . | . . . Corruption Purged . | . . . Corruption Blocked . | . . . Overload Shots . | . . . Overflow Damage 18 | . 18 . Projectiles 18 | . 18 . Explosions . | . . . Melee . | . . . Knockbacks . | . . . Impact . | . . . Kinetic . | . . . Secondary . | . . . Self-Inflicted Damage . | . . . Shots . | . . . Rammed 1 | . 1 . Targets Rammed 1 | . 1 . Kicked . | . . . Crushed . | . . . Highest Temperature 271 | 27 222 271 Average Temperature 63 | 12 63 92 Received Heat Transfer 690 | . 306 384 Siege Activations . | . . . Robots Corrupted . | . . . Combat Hostiles . | . . . Parts Fried . | . . . Impact Corruptions . | . . . Robots Melted . | . . . Combat Hostiles . | . . . Parts Melted 4 | . 4 . Heat Transferred 3209 | 111 2479 619 Parts Sabotaged . | . . . Parts Stolen . | . . . Parts Stripped . | . . . Power Chain Reactions . | . . . Alert | -11 -10 -10 ------- Run | Yrd Mat Sub Peak Influence 294 | 15 294 . Initial 9 | . 9 . Average 111 | 5 116 . Maximum Alert Level 1 | . 1 . Low Security (%) 90 | 100 89 . Level 1 9 | . 10 . Level 2 . | . . . Level 3 . | . . . Level 4 . | . . . Level 5 . | . . . High Security . | . . . Max Security . | . . . Squads Dispatched 5 | . 5 . Investigation 2 | . 2 . Extermination . | . . . Reinforcement 3 | . 3 . Assault . | . . . Garrison . | . . . Intercept . | . . . Searches Triggered . | . . . Construction Impeded . | . . . Haulers Reinforced . | . . . Active Scanning Responses . | . . . Cargo Convoy Interrupts . | . . . Stealth | -11 -10 -10 --------- Run | Yrd Mat Sub Distress Signals 2 | . 2 . Communications Jammed . | . . . Distress Signals . | . . . Times Spotted 39 | . 33 6 Peak Tracking Total 6 | . 6 2 Tactical Retreats 3 | . 3 . Traps | -11 -10 -10 ------- Run | Yrd Mat Sub Traps Triggered 2 | . 2 . Indirectly . | . . . Trap Hack Attempts . | . . . Triggered . | . . . Disarmed . | . . . Reprogrammed . | . . . Reused . | . . . Traps Extracted . | . . . Installed . | . . . Triggered . | . . . Machines | -11 -10 -10 ---------- Run | Yrd Mat Sub Machines Disabled . | . . . Max in Single Turn . | . . . Machines Repaired . | . . . Machines Dismantled . | . . . Machines Sabotaged . | . . . Overloaded Fab Kills . | . . . Hacking | -11 -10 -10 --------- Run | Yrd Mat Sub Machines Accessed 5 | . 5 . Terminals 5 | . 5 . Fabricators . | . . . Repair Stations . | . . . Recycling Units . | . . . Scanalyzers . | . . . Garrison Access . | . . . Total Hacks 15 | . 15 . Successful 5 | . 5 . Failed 10 | . 10 . Catastrophic 2 | . 2 . Database Lockouts . | . . . Manual 6 | . 6 . Terminals 15 | . 15 . Fabricators . | . . . Repair Stations . | . . . Recycling Units . | . . . Scanalyzers . | . . . Garrison Access . | . . . Terminal Hacks 5 | . 5 . Part Schematic 3 | . 3 . Robot Analysis 1 | . 1 . Hauler Manifests 1 | . 1 . Fabricator Hacks . | . . . Repair Station Hacks . | . . . Recycling Unit Hacks . | . . . Scanalyzer . | . . . Garrison Access Hacks . | . . . Unauthorized Hacks . | . . . Terminals . | . . . Fabricators . | . . . Repair Stations . | . . . Recycling Units . | . . . Scanalyzers . | . . . Garrison Access . | . . . Data Cores Recovered . | . . . Used . | . . . Hacking Detections 5 | . 5 . Full Trace Events . | . . . Feedback Events . | . . . Feedback Blocked . | . . . Robot Schematics Acquired . | . . . Robots Built . | . . . Authchips . | . . . Time . | . . . Total Robot Build Rating . | . . . Part Schematics Acquired 3 | . 3 . Parts Built . | . . . Authchips . | . . . Time . | . . . Total Part Build Rating . | . . . Parts Repaired . | . . . Time . | . . . Parts Recycled . | . . . Recycled Matter . | . . . Retrieved Matter . | . . . Retrieved Components . | . . . Parts Scanalyzed . | . . . Part Schematics Acquired . | . . . Parts Damaged . | . . . Bothacking | -11 -10 -10 ------------ Run | Yrd Mat Sub Used RIF Installer . | . . . Robots Hacked . | . . . Non-combat . | . . . Combat . | . . . Robot Hacks Applied . | . . . Relay Couplers Released . | . . . Fabnet Peak Effective % . | . . . Robots Rewired . | . . . Allies Hacked . | . . . Hacks Repelled . | . . . Allies | -11 -10 -10 -------- Run | Yrd Mat Sub Total Allies . | . . . Largest Group . | . . . Highest-Rated Group . | . . . Highest-Rated Ally . | . . . Total Orders . | . . . Ally Attacks . | . . . Total Damage . | . . . Kills . | . . . Allies Corrupted . | . . . Allies Melted . | . . . Intel | -11 -10 -10 ------- Run | Yrd Mat Sub Robot Analysis Total 1 | . 1 . Derelict Logs Recovered . | . . . Drone Launches . | . . . Drone Recoveries . | . . . Exploration | -11 -10 -10 ------------- Run | Yrd Mat Sub Turns Passed 3031 | 93 2073 865 Spaces Moved 997 | 58 624 315 Core 7 | 7 . . Treads 809 | . 494 315 Legs 181 | 51 130 . Wheels . | . . . Hover . | . . . Flight . | . . . Fastest Speed 50 | 50 120 240 Average Speed 216 | 111 215 240 Slowest Speed 240 | 120 240 240 Overloaded Moves . | . . . Propulsion Burnouts . | . . . Robots Hopped . | . . . Cave-ins Triggered . | . . . Exploration Rate (%) 39 | 4 96 19 Regions Visited 2 Branch Regions 1 Pre-discovered Areas 1 | . . 1 Known Exits Taken . | . . . Unknown Exits Taken 2 | 1 1 . Scrap Searched 2 | . . 2 Spaces Dug . | . . . Terrain Destroyed . | . . . Melee . | . . . Projectile . | . . . AOE . | . . . Terrain Rammed . | . . . Walls Destroyed . | . . . Machines Disabled . | . . . Actions | -11 -10 -10 --------- Run | Yrd Mat Sub Total 1647 | 75 1193 379 Wait 462 | . 436 26 Move 995 | 57 623 315 Hop . | . . . Pick Up 30 | 5 25 . Fast Attach 12 | 8 1 3 Attach 4 | . 2 2 Detach 2 | 1 . 1 Swap 11 | . 8 3 Drop 18 | . 14 4 Fire 107 | 4 83 20 Melee 5 | . . 5 Ram . | . . . Kick . | . . . Crush 1 | . 1 . Escape Stasis . | . . . Rewire . | . . . Trap . | . . . Miscellaneous . | . . . Route ------- -11/Scrapyard -10/Materials (discovered 6 exits: [*Mat x3] / [*Min x2] / [*Sub]) -10/Subcaves (discovered 1 exit: [*Mat]) History --------- Turn | Location | Event 37 | -11/Scrapyard | Discovered new exit (range 15) 94 | -11/Scrapyard | Entered Materials 94 | -10/Materials | Discovered new exit (range 15) 320 | -10/Materials | Build established: Mutant 404 | -10/Materials | Discovered new exit (range 13) 489 | -10/Materials | Discovered new exit (range 15) 902 | -10/Materials | Discovered new exit (range 16) 1355 | -10/Materials | Core integrity fell below 50% 1472 | -10/Materials | Discovered new exit (range 10) 2132 | -10/Materials | Discovered new exit (range 3) 2167 | -10/Materials | Entered Subcaves 2193 | -10/Subcaves | Learned location of Zion (-6) 2193 | -10/Subcaves | Met a Zionite searching for "candidates" 2344 | -10/Subcaves | Discovered new exit (range 10) 2397 | -10/Subcaves | Core integrity fell below 20% 3000 | -10/Subcaves | A Subdweller sparked back to life 3000 | -10/Subcaves | A Subdweller sparked back to life 3022 | -10/Subcaves | Ambushed by Subdweller buried in earth 3032 | -10/Subcaves | Destroyed by F9-9JA(R) with Subdweller Beam Cannon Last Messages --------------- 02407_ RO-DWI(R) affixes Scrap Shield Fragment to Scrap Shield. 02408_ Acquired 3 matter. 02410_ RO-DWI(R) destroyed. 02411_ Acquired 3 matter. 02414_ Acquired 10 matter. 02524_ 0V-NNL(u) tweaks Twisted Machinery. 02846_ Subatomizers dissect the Sub. Power Source. 02893_ Acquired 10 matter. 02912_ Dropped Mni. Grenade Launcher. 02969_ Acquired Sub. Laser. 03000_ NE-O3J(R) creaks and sparks as it begins to move. 03000_ NZ-2UH(R) creaks and sparks as it begins to move. 03000_ NE-O3J(R) destroyed. 03022_ Battle Rifle destroyed. 03022_ QP-VKL(R) destroyed. 03023_ F9-9JA(R): "HIDIE!" Map ----- +----------------------------------------------------+ | ??????????????## | | ???????????????# | | ???????????????# # &= | | ???????????????# ##### &%& | | ???????????????# ####?## &!! | | ???????????????#### ###### ### | | ????????????????## ###" %%%%= #### | | ???????????????## ##"" ##][ ## | | ???????????????# ### ###""" | | ??????????????## # #?### | | ??????????????# #####"""" ] #???## # | | ??????????????## ## #"#"""####????## # | | ???????????????# """""#""#????????## = | | ???????????????# """"##"" ?????????# !%! | | ???????????????# """"#""" ????????# | | ???????????????# ##""!# #??# # | | ???????????????## ##!%### ##??### # | | ???????????????# ;#&&#####?????######## # | | ???????????????## ! *#?????????????? | | ????????????????# #?????????????##" # | | ???????????????## ##?????????????? # | | ??????????????##; ##???????????????#" | | ??????????????#;; ###????????????????# | | ??????????????#; ;;#?????????????????## | | ???????????????#; ;; #??????????????????## | | ???????????????#;!@; #???????????????????## | | ??????????????#;]%=R #????????????????????# | | ??????????????#;;! ; #????????????????????# | | ??????????????## ####????????????????????? | | ???????????????#; ???????????????????????? | | ???????????????# ##??????????????????????? | | ???????????????# #???????????????????????? | | ???????????????## "???????????????????????? | | ???????????????? ???????????????????????? | | ????????????????<& ???????????????????????? | | ????????????????!&%???????????????????????? | | ???????????????? " ???????????????????????? | | ???????????????? " ???????????????????????? | | ???????????????? "???????????????????????? | | ???????????????? ? ???????????????????????? | | ??????????????????????????????????????????? | | ??????????????????????????????????????????? | | ??????????????????????????????????????????? | | ??????????????????????????????????????????? | | ??????????????????????????????????????????? | | ??????????????????????????????????????????? | | ??????????????????????????????????????????? | | ??????????????????????????????????????????? | | ??????????????????????????????????????????? | | ??????????????????????????????????????????? | +----------------------------------------------------+ Best States ------------- Heat Dissipation 25 Energy Generation 10 Energy Capacity 250 Matter Stores 300 Matter Capacity 300 Sight Range 16 Terrain Scan Density 10 Armor Coverage 150 Core Shielding 20 Evasion (%) 55 Recoil Reduction 2 Item Schematics ----------------- Hcp. Storage Unit | -10/Materials | Hacked Huge Storage Unit | -10/Materials | Hacked Lrg. Storage Unit | -10/Materials | Hacked Robot Schematics ------------------ None Fabricated ------------ Nothing Alien Tech Used ----------------- None Achievements -------------- None Challenges ------------ None Game ------ Seed ForceMassWell Manual? 0 Play Time 00:16:08 Cumulative 120.3 hours Start 2024.04.29 @ 13:58:56 End 2024.04.29 @ 14:11:54 Sessions 1 Manual Loads 0 Difficulty Rogue Special Mode None Game No. 98 Rogue 98 Adventurer 0 Explorer 0 Win Type - Total 3 Types 2/0/1/0/0/0/0/0/0 Lore% 51 Gallery% 67 Achievement% 53 Wizard Run 0 Options --------- Layout 2 ASCII 0 Keyboard 0 Movement Mouse Keybinds 1 Fullscreen 2 Font 32/SmallcapsGlow Map View 50x44 Zoom Use 0% Tactical HUD 1 Map Filters NONE Filters NONE Steam 1 RUN: 9bd16909-0809-4578-9cad-1ebda45c4f5a